bitfinex/quotes_ETHUSD_20240916
["timestamp","ask_amount","ask_price","bid_price","bid_amount"]
[1726519756946,6.78973,2279.4,2279.1,0.55]
[1726519760493,6.78973,2279.4,2279.0,4.38771]
[1726519760893,6.78973,2279.4,2279.1,0.15610026]
[1726519765174,11.17702,2279.4,2279.1,0.15610026]
[1726519765350,2.4025,2279.4,2279.1,0.15610026]
[1726519765784,6.78962,2279.4,2279.0,4.38784]
[1726519765983,6.78962,2279.4,2279.2,0.15625142]
[1726519766184,6.78962,2279.4,2279.1,0.15637486]
[1726519766488,6.78962,2279.4,2279.2,0.15625142]
[1726519766688,6.78962,2279.4,2279.0,4.38784]
[1726519766911,6.78962,2279.4,2279.3,0.156128]
[1726519767215,6.78962,2279.4,2279.0,4.38784]
[1726519767375,6.78962,2279.4,2279.3,0.156128]
[1726519767575,6.78962,2279.4,2279.0,4.38784]
[1726519767803,6.78962,2279.4,2279.3,0.156128]
[1726519768009,6.78962,2279.4,2279.0,4.38784]
[1726519768489,6.78962,2279.4,2279.1,0.15637486]
[1726519770890,4.38733,2279.3,2279.1,0.15637486]
[1726519771074,6.8474,2279.2,2278.8,4.4259799]
[1726519771277,6.8474,2279.2,2278.9,0.55]
[1726519771586,6.8474,2279.2,2278.8,0.0377799]
[1726519771587,4.38782,2279.1,2278.8,0.0377799]
[1726519771787,4.38793,2279.0,2278.8,0.0377799]
[1726519772003,4.38774,2279.1,2278.8,0.0377799]
[1726519772203,5.78664883,2279.1,2278.8,0.0377799]
[1726519772712,4.38771,2279.1,2278.8,0.0377799]
[1726519775901,4.38771,2279.1,2278.9,0.15712616]
[1726519777007,6.87498,2279.0,2278.9,0.15712616]
[1726519777197,8.70755457,2279.0,2278.9,0.15712616]
[1726519777523,10.1092184,2279.0,2278.9,0.15712616]
[1726519779582,8.27664383,2279.0,2278.9,0.15712616]
[1726519785815,12.66452383,2279.0,2278.9,0.15712616]
[1726519786342,8.27664383,2279.0,2278.9,0.15712616]
[1726519787107,12.66452383,2279.0,2278.9,0.15712616]
[1726519787546,8.27664383,2279.0,2278.9,0.15712616]
[1726519788019,12.66452383,2279.0,2278.9,0.15712616]
[1726519789041,4.38808,2278.9,2278.8,0.0377799]
[1726519789348,5.65453238,2278.9,2278.8,0.19528432]
[1726519796250,4.38808,2278.9,2278.8,0.19528432]
[1726519807165,8.77616,2278.9,2278.8,0.19528432]
[1726519815039,11.21936,2278.9,2278.8,0.19528432]
[1726519815269,19.99552,2278.9,2278.8,0.19528432]
[1726519815497,28.58393595,2278.9,2278.8,0.19528432]
[1726519815658,28.58393595,2278.9,2278.1,0.0377799]
[1726519815659,17.44406457,2278.2,2278.1,0.0377799]
[1726519816079,21.83349457,2278.2,2278.1,0.19115354]
[1726519816271,11.22206,2278.2,2278.1,0.0377799]
[1726519817196,11.22206,2278.2,2278.1,0.19115354]
[1726519821097,11.21973015,2278.2,2278.1,0.19115354]
[1726519823214,15.60916015,2278.2,2278.1,0.0377799]
[1726519825310,18.60916015,2278.2,2278.1,0.0377799]
[1726519825511,21.09225562,2278.2,2278.1,0.0377799]
[1726519829930,4.39038,2277.8,2277.3,6.7015498]
[1726519830082,8.78076,2277.8,2277.3,6.7015498]
[1726519830277,8.78076,2277.8,2277.4,0.15529372]
[1726519830523,4.39002,2277.9,2277.5,4.39064]
[1726519830691,4.39002,2277.9,2277.4,4.54623372]
[1726519830692,9.8432,2278.2,2277.4,1.98786829]
[1726519830901,7.4,2278.2,2277.6,4.5456265]
[1726519831100,4.38962,2278.1,2277.7,4.39037]
[1726519831286,4.38962,2278.1,2277.7,4.54529291]
[1726519831721,8.77936,2278.1,2277.7,0.15492291]
[1726519832022,8.77936,2278.1,2277.7,0.21001714]
[1726519832321,4.38962,2278.1,2277.7,0.21001714]
[1726519832500,8.77934,2278.1,2277.7,0.21001714]
[1726519832694,4.38962,2278.1,2277.7,0.21001714]
[1726519833017,8.77933,2278.1,2277.7,6.95400714]
[1726519833204,4.38962,2278.1,2277.7,6.95400714]
[1726519833412,8.77935,2278.1,2277.7,6.95400714]
[1726519833832,4.38962,2278.1,2277.7,6.95400714]
[1726519833988,8.77934,2278.1,2277.7,6.95400714]
[1726519834320,8.77937,2278.1,2277.7,6.95400714]
[1726519834788,4.38981,2278.0,2277.7,2.56361714]
[1726519834994,6.22238457,2278.0,2277.7,2.56361714]
[1726519836040,6.48881446,2278.1,2277.7,2.56361714]
[1726519836041,4.38965,2278.1,2277.7,2.56361714]
[1726519836334,2.98,2278.3,2277.9,2.3739]
[1726519836541,7.36907,2278.4,2278.0,4.38981]
[1726519836838,7.36907,2278.4,2278.1,0.20957416]
[1726519837024,4.38924,2278.3,2278.1,0.20957416]
[1726519837200,4.38924,2278.3,2277.9,6.76382]
[1726519837521,4.38924,2278.3,2278.0,0.20970013]
[1726519840244,2.98,2278.4,2278.0,4.59950013]
[1726519840403,7.36906,2278.4,2278.0,4.59950013]
[1726519840748,2.98,2279.0,2278.7,6.69569]
[1726519841032,2.98,2279.0,2278.8,0.2084326]
[1726519841243,2.98,2279.1,2278.7,6.69569]
[1726519841538,4.3877,2279.1,2278.8,0.20832258]
[1726519841939,4.3877,2279.1,2278.7,6.69563]
[1726519842151,2.98,2279.2,2278.9,4.5961667]
[1726519842330,2.98,2279.3,2279.2,4.3875]
[1726519842646,2.98,2279.3,2279.2,11.15757457]
[1726519842848,2.98,2279.3,2279.2,9.53257416]
[1726519845302,2.98,2279.3,2279.2,5.14507416]
[1726519847136,0.0377799,2279.4,2279.2,0.75757416]
[1726519847812,0.0377799,2279.4,2279.2,0.20757416]
[1726519848020,0.0377799,2279.4,2279.0,6.6465]
[1726519848348,0.0377799,2279.4,2279.1,0.20737523]
[1726519849061,0.0377799,2279.4,2279.1,4.59504523]
[1726519853052,0.0377799,2279.4,2279.1,0.20737523]
[1726519853540,0.0377799,2279.4,2279.1,4.59504523]
[1726519858339,4.4249899,2279.4,2279.1,0.20737523]
[1726519858652,3.33137289,2279.4,2279.1,0.20737523]
[1726519858861,6.8373199,2279.4,2279.1,0.20737523]
[1726519859412,11.2245199,2279.4,2279.1,0.20737523]
[1726519859715,6.8373199,2279.4,2279.1,0.20737523]
[1726519859944,6.8373199,2279.4,2279.1,4.59506523]
[1726519859945,2.4501799,2279.4,2279.1,4.59506523]
[1726519860130,0.0377799,2279.4,2279.2,2.4809]
[1726519860450,0.0377799,2279.4,2279.3,0.20651874]
[1726519860754,0.91894489,2279.4,2279.3,0.20651874]
[1726519861050,0.91894489,2279.4,2279.1,4.38769]
[1726519861051,0.0377799,2279.4,2279.1,4.38757]
[1726519861357,0.0377799,2279.4,2279.2,0.20664458]
[1726519863426,0.91893489,2279.4,2279.2,0.20664458]
[1726519863632,5.30608489,2279.4,2279.2,0.20664458]
[1726519863957,5.30608489,2279.4,2279.0,6.75575]
[1726519864165,5.30608489,2279.4,2279.3,0.20648377]
[1726519864675,7.58068489,2279.4,2279.0,6.75575]
[1726519864882,0.53060849,2279.3,2279.0,6.75575]
[1726519865064,0.0377799,2279.4,2279.1,4.38768]
[1726519865856,0.0377799,2279.4,2279.2,0.20667455]
[1726519866073,1.3298414,2279.4,2279.2,0.20667455]
[1726519868778,5.7169714,2279.4,2279.2,0.20667455]
[1726519870444,5.7169714,2279.4,2279.0,6.75575]
[1726519870645,5.7169714,2279.4,2279.3,0.20654871]
[1726519870939,5.7169714,2279.4,2279.0,6.75575]
[1726519871505,5.7169714,2279.4,2279.1,0.2068004]
[1726519871782,1.3298414,2279.4,2279.1,0.2068004]
[1726519872978,4.38733,2279.3,2279.1,0.2068004]
[1726519874713,5.7169914,2279.4,2279.1,0.2068004]
[1726519874868,4.38736,2279.3,2279.1,0.2068004]
[1726519878967,6.7147,2279.2,2279.1,0.2068004]
[1726519879172,11.10237,2279.2,2278.8,6.64533]
[1726519879397,11.10237,2279.2,2278.9,0.20710206]
[1726519880000,6.7147,2279.2,2278.9,0.20710206]
[1726519880333,4.38773,2279.1,2278.9,0.20710206]
[1726519880641,8.11314202,2279.2,2278.9,0.20710206]
[1726519880642,5.78597202,2279.2,2278.9,0.20710206]
[1726519881250,2.4423,2279.1,2278.9,0.20710206]
[1726519881444,2.4423,2279.1,2278.7,4.38844]
[1726519881598,7.31523772,2279.1,2278.7,4.38844]
[1726519882119,7.31523772,2279.1,2278.8,0.20730789]
[1726519882507,7.31523772,2279.1,2278.7,4.38844]
[1726519882704,7.31523772,2279.1,2278.9,0.207182]
[1726519882920,7.31523772,2279.1,2278.8,0.20730789]
[1726519883117,7.31523772,2279.1,2279.0,0.20705613]
[1726519883295,7.31523772,2279.1,2278.9,0.207182]
[1726519883504,7.31523772,2279.1,2278.7,4.38844]
[1726519883505,0.76723188,2279.0,2278.7,4.38844]
[1726519884330,7.31523772,2279.1,2278.7,4.38844]
[1726519885319,6.87503,2279.3,2278.9,4.38805]
[1726519885537,0.0377799,2279.4,2279.0,4.93772]
[1726519885719,0.0377799,2279.4,2279.2,2.4705]
[1726519886741,0.0377799,2279.4,2279.3,4.38731]
[1726519890053,0.0377799,2279.4,2279.3,8.77462]
[1726519890261,0.0377799,2279.4,2279.3,4.38731]
[1726519891675,0.0377799,2279.4,2279.3,11.24655637]
[1726519891892,0.0377799,2279.4,2279.3,24.73087634]
[1726519892189,0.0377799,2279.4,2279.3,28.10423695]
[1726519892389,7.4,2280.0,2279.9,7.32175]
[1726519892598,0.0377799,2280.1,2279.9,7.32175]
[1726519896083,0.0377799,2280.1,2280.0,0.20563319]
[1726519896291,0.0377799,2280.1,2280.0,5.14159319]
[1726519896780,0.0377799,2280.1,2280.0,9.52755319]
[1726519899877,0.0377799,2280.1,2280.0,0.20563319]
[1726519900280,0.0377799,2280.1,2280.0,4.59159319]
[1726519900616,0.0377799,2280.1,2280.0,0.20563319]
[1726519903115,4.4235499,2280.1,2279.8,0.55]
[1726519903316,5.53092989,2280.1,2280.0,0.20513876]
[1726519903485,5.53092989,2280.1,2279.9,0.20526452]
[1726519903679,5.53092989,2280.1,2279.8,0.55]
[1726519903875,1.14515989,2280.1,2280.0,0.20513876]
[1726519904186,1.14515989,2280.1,2279.8,0.55]
[1726519904386,0.0377799,2280.1,2280.0,0.20484416]
[1726519904609,0.0377799,2280.1,2279.9,0.20496992]
[1726519904812,0.0377799,2280.1,2280.0,0.20484416]
[1726519905115,0.0377799,2280.1,2279.8,0.55]
[1726519905279,0.0377799,2280.1,2280.0,0.20484416]
[1726519905480,0.0377799,2280.1,2279.8,0.55]
[1726519905784,0.0377799,2280.1,2280.0,0.20484416]
[1726519906614,0.0377799,2280.1,2279.8,0.55]
[1726519906976,0.0377799,2280.1,2279.9,0.20496992]
[1726519909221,2.4197,2280.0,2279.9,0.20496992]
[1726519911129,7.92853599,2280.0,2279.9,0.20496992]
[1726519911286,6.80566,2280.0,2279.9,0.20496992]
[1726519911625,4.38616,2279.9,2279.5,4.38683]
[1726519911924,8.77249,2279.9,2279.5,4.38683]
[1726519912088,8.77245,2279.9,2279.5,4.38683]
[1726519912282,8.77243,2279.9,2279.5,4.38683]
[1726519912496,8.77243,2279.9,2279.5,0.55]
[1726519912497,4.38616,2279.9,2279.5,0.55]
[1726519912727,4.38644,2279.8,2279.5,0.55]
[1726519914242,2.3867,2279.6,2279.2,2.4772]
[1726519914438,6.77346,2279.6,2279.3,0.55]
[1726519915709,2.3867,2279.6,2279.3,0.55]
[1726519915916,4.38724,2279.4,2279.0,6.86683]
[1726519916211,4.38724,2279.4,2279.1,0.55]
[1726519917445,4.38724,2279.4,2279.0,4.38771]
[1726519917744,6.87941,2279.3,2279.0,0.55]
[1726519919233,2.4921,2279.3,2279.0,4.93784]
[1726519921047,2.4519,2279.5,2279.2,0.55]
[1726519922111,6.83894,2279.5,2279.2,0.55]
[1726519924015,11.22598,2279.5,2279.2,0.55]
[1726519924217,4.3876,2279.2,2278.7,6.80146]
[1726519924417,4.3876,2279.2,2278.7,4.38836]
[1726519924418,6.80059,2279.1,2278.7,4.38836]
[1726519924962,2.4128,2279.1,2278.7,4.38845]
[1726519925114,6.80064,2279.1,2278.7,4.38845]
[1726519925814,6.80064,2279.1,2278.8,0.74983039]
[1726519926044,6.80064,2279.1,2278.8,0.19983039]
[1726519926045,8.77616,2278.9,2278.8,0.19983039]
[1726519926365,8.77616,2278.9,2278.4,6.6539]
[1726519926366,4.38808,2278.9,2278.5,4.38876]
[1726519926551,4.38808,2278.9,2278.8,0.19983039]
[1726519926946,4.38808,2278.9,2278.5,4.38876]
[1726519927857,4.38828,2278.8,2278.5,4.38876]
[1726519928226,6.71841,2279.0,2278.6,4.38864]
[1726519928522,4.38791,2279.0,2278.6,4.38864]
[1726519928918,8.77595,2279.0,2278.6,4.38864]
[1726519929120,8.77593,2279.0,2278.6,4.38864]
[1726519929620,2.3817,2279.2,2279.0,4.38785]
[1726519929960,4.3872,2279.4,2279.0,6.77498]
[1726519930162,1.66333528,2279.4,2279.1,0.55]
[1726519930330,4.38712,2279.4,2279.1,0.55]
[1726519931420,6.80806,2279.5,2279.1,4.93766]
[1726519933424,4.38711,2279.4,2279.1,4.93766]
[1726519933851,4.38711,2279.4,2279.1,0.55]
[1726519934317,4.38732,2279.3,2279.0,2.3871]
[1726519934517,4.38715,2279.4,2279.0,6.77495]
[1726519934721,4.38715,2279.4,2279.0,6.77491]
[1726519935168,2.4211,2279.5,2279.1,0.55]
[1726519935373,7.4,2279.6,2279.3,6.78542]
[1726519935667,4.38623,2279.9,2279.5,4.38685]
[1726519936862,4.38669,2279.7,2279.4,0.55]
[1726519937189,6.67649,2279.7,2279.4,0.55]
[1726519940305,6.67649,2279.7,2279.3,6.78533]
[1726519940968,6.67649,2279.7,2279.4,0.19966963]
[1726519942884,2.2898,2279.7,2279.4,4.58677963]
[1726519943202,4.38655,2279.7,2279.4,4.58677963]
[1726519945960,4.38673,2279.6,2279.4,0.19966963]
[1726519946320,4.38683,2279.6,2279.2,4.38749]
[1726519946596,6.68023,2279.6,2279.5,0.19927402]
[1726519946806,6.68023,2279.6,2279.2,4.38749]
[1726519946958,11.06705,2279.6,2279.5,0.19927402]
[1726519947164,4.38694,2279.5,2279.1,6.7764]
[1726519947610,4.38694,2279.5,2279.2,0.1996515]
[1726519948967,4.38731,2279.3,2279.2,0.1996515]
[1726519949306,4.38731,2279.3,2279.0,4.38788]
[1726519949465,4.38731,2279.3,2279.2,0.1996515]
[1726519949673,4.38731,2279.3,2279.0,4.38788]
[1726519949880,4.38731,2279.3,2279.2,0.1996515]
[1726519950076,4.38731,2279.3,2279.0,4.38788]
[1726519950265,4.38731,2279.3,2279.1,0.19977735]
[1726519950710,4.38717,2279.4,2279.1,0.19977735]
[1726519951183,4.38732,2279.3,2279.1,0.19977735]
[1726519951891,4.38717,2279.4,2279.1,0.19977735]
[1726519957078,1.06509814,2279.5,2279.1,0.19977735]
[1726519957391,1.06509814,2279.5,2278.9,4.38807]
[1726519957392,6.72407,2279.3,2278.9,4.93799]
[1726519957595,6.72407,2279.3,2279.2,0.19970646]
[1726519957811,6.72407,2279.3,2278.9,9.32592]
[1726519958275,6.72407,2279.3,2279.0,0.19995817]
[1726519959509,4.38769,2279.1,2279.0,0.19995817]
[1726519959830,4.38769,2279.1,2278.5,2.28335588]
[1726519959831,4.38825,2278.9,2278.4,3.35986028]
[1726519960016,4.38825,2278.9,2278.5,1.10490434]
[1726519960017,4.38838,2278.8,2278.5,1.10490434]
[1726519960222,6.6466,2278.7,2278.4,2.4387]
[1726519960514,6.6466,2278.7,2278.3,4.38913]
[1726519960887,4.38877,2278.6,2278.2,7.76744028]
[1726519961124,4.38877,2278.6,2278.3,1.10477955]
[1726519961411,4.38877,2278.6,2278.2,6.84628]
[1726519961613,4.38877,2278.6,2278.3,1.10481818]
[1726519961823,4.38877,2278.6,2278.2,6.84628]
[1726519962125,4.38877,2278.6,2278.3,1.10460558]
[1726519962278,4.38877,2278.6,2278.2,6.84625]
[1726519962483,4.38877,2278.6,2278.3,1.10456051]
[1726519962686,4.38877,2278.6,2278.2,6.84625]
[1726519962905,4.38877,2278.6,2278.3,1.10439356]
[1726519963075,4.38877,2278.6,2278.2,6.84625]
[1726519963278,4.38877,2278.6,2278.3,1.10435717]
[1726519963516,4.38877,2278.6,2278.2,11.2355]
[1726519963913,4.38877,2278.6,2278.2,6.84625]
[1726519964117,0.75639053,2278.6,2278.1,0.92116028]
[1726519964425,0.75639053,2278.6,2278.0,6.65132]
[1726519964426,4.38905,2278.4,2278.0,6.65132]
[1726519964737,6.68587,2278.4,2278.0,6.6515]
[1726519965076,2.2968,2278.4,2278.0,6.6515]
[1726519965313,8.77793,2278.5,2278.0,6.6515]
[1726519965518,8.77793,2278.5,2278.1,4.38961]
[1726519965519,4.38895,2278.5,2278.1,4.38961]
[1726519965814,8.7779,2278.5,2278.0,6.6514]
[1726519966144,8.7779,2278.5,2278.0,11.04113]
[1726519966418,8.7779,2278.5,2278.0,6.6514]
[1726519967214,10.3580742,2278.5,2278.0,6.6514]
[1726519968157,6.6965,2278.1,2277.6,6.83715]
[1726519968354,3.37351514,2278.1,2277.7,4.3903]
[1726519968544,2.3068,2278.1,2277.7,4.3903]
[1726519969196,6.69644,2278.1,2277.7,4.3903]
[1726519970472,4.38992,2278.0,2277.7,0.55]
[1726519970672,4.38992,2278.0,2277.6,4.39045]
[1726519970871,4.38992,2278.0,2277.8,0.18868905]
[1726519971034,4.38992,2278.0,2277.7,0.18881506]
[1726519971035,5.498556,2278.0,2277.7,0.18881506]
[1726519971230,5.498556,2278.0,2277.9,0.18916936]
[1726519971231,9.888466,2278.0,2277.9,0.18916936]
[1726519971436,6.7203,2277.9,2277.8,0.18929535]
[1726519971671,6.7203,2277.9,2277.5,4.39074]
[1726519972643,2.3303,2277.9,2277.6,4.39046]
[1726519972979,6.7203,2277.9,2277.5,8.78132]
[1726519973274,6.7203,2277.9,2277.5,4.39064]
[1726519973444,2.3303,2277.9,2277.4,2.4749799]
[1726519973687,6.72032,2277.9,2277.5,4.39073]
[1726519974118,8.9801742,2278.5,2277.8,4.39012]
[1726519974119,6.81153,2278.2,2277.8,4.39012]
[1726519974615,6.81153,2278.2,2277.7,6.70583]
[1726519974616,4.38963,2278.1,2277.7,6.70594]
[1726519974815,5.070783,2278.1,2277.7,6.70594]
[1726519975115,6.81153,2278.2,2277.7,6.70594]
[1726519975116,6.81153,2278.2,2277.8,4.3901]
[1726519976110,2.422,2278.2,2277.9,4.38992]
[1726519976617,4.38966,2278.1,2277.7,4.39031]
[1726519976790,5.070785,2278.1,2277.7,4.39031]
[1726519977505,6.79264,2277.9,2277.5,4.39064]
[1726519977700,2.4026,2277.9,2277.6,4.39058]
[1726519978717,6.79262,2277.9,2277.6,4.39058]
[1726519978872,2.4026,2277.9,2277.6,4.39051]
[1726519979074,4.39054,2277.7,2277.4,0.0377799]
[1726519979312,6.8688,2277.6,2277.4,0.0377799]
[1726519979619,2.4782,2277.6,2277.4,0.0377799]
[1726519980911,7.994761,2277.6,2277.4,0.0377799]
[1726519981492,4.39077,2277.5,2277.4,0.0377799]
[1726519982100,3.604081,2277.6,2277.4,0.0377799]
[1726519982101,12.385421,2277.6,2277.4,0.0377799]
[1726519982309,4.39077,2277.5,2277.4,0.0377799]
[1726519984037,6.86881,2277.6,2277.4,0.0377799]
[1726519984527,11.25953,2277.6,2277.4,0.0377799]
[1726519984733,11.23824,2277.5,2277.4,0.0377799]
[1726519984996,13.19818714,2277.5,2277.4,0.0377799]
[1726519985150,6.84747,2277.5,2277.4,0.0377799]
[1726519985358,11.23824,2277.5,2277.4,0.0377799]
[1726519985641,6.84747,2277.5,2277.4,0.0377799]
[1726519986241,6.84747,2277.5,2277.4,0.2215711]
[1726519986442,8.36834114,2277.5,2277.4,0.0377799]
[1726519986640,8.36834114,2277.5,2277.4,0.2215711]
[1726519986948,3.97757114,2277.5,2277.4,0.2215711]
[1726519987152,2.4567,2277.5,2277.4,0.2215711]
[1726519988128,6.66999,2277.6,2277.4,0.2215711]
[1726519988529,6.84907,2277.5,2277.4,0.2215711]
[1726519988770,11.23984,2277.5,2277.4,0.2215711]
[1726519988976,2.4583,2277.1,2276.8,4.39204]
[1726519989270,2.4583,2277.1,2276.8,4.39202]
[1726519989824,6.84992,2277.1,2276.7,4.4299799]
[1726519990029,2.70413,2277.1,2276.8,4.3921]
[1726519990231,2.4583,2277.1,2276.8,4.3921]
[1726519991474,9.84993,2277.1,2276.7,0.0377799]
[1726519991765,6.443293,2277.1,2276.7,4.4300499]
[1726519992067,4.39165,2277.1,2276.7,6.6902899]
[1726519992281,4.3921,2276.9,2276.7,0.0377799]
[1726519992574,4.39202,2276.9,2276.7,0.0377799]
[1726519993183,6.7912,2277.0,2276.7,0.0377799]
[1726519993336,6.7912,2277.0,2276.7,4.4299699]
[1726519993337,2.3993,2277.0,2276.7,4.4299699]
[1726519993682,7.99384406,2277.3,2276.8,2.3035]
[1726519993880,0.79938441,2277.2,2276.8,2.3035]
[1726519994182,0.79938441,2277.2,2276.8,6.69554]
[1726519994477,8.91198914,2277.5,2276.8,6.69554]
[1726519994478,4.391,2277.4,2277.0,4.39164]
[1726519995840,8.91185914,2277.5,2277.1,4.3915]
[1726519996135,14.06573,2277.6,2277.3,4.39105]
[1726519996136,7.4,2277.6,2277.3,4.39105]
[1726519996347,6.8432,2277.8,2277.4,0.17798641]
[1726519996563,4.39044,2277.7,2277.3,4.39105]
[1726519996752,5.07476,2277.7,2277.3,4.39105]
[1726519996952,0.68432,2277.7,2277.3,4.39105]
[1726519997665,5.07471,2277.7,2277.3,4.39105]
[1726519998061,0.68432,2277.7,2277.4,4.39097]
[1726519998265,0.68432,2277.7,2277.3,4.39105]
[1726519998467,0.68432,2277.7,2277.5,0.17785542]
[1726519998661,5.07473,2277.7,2277.4,0.17798146]
[1726519998893,1.191778,2277.6,2276.7,8.40060132]
[1726519999051,6.64701,2277.4,2277.0,6.68345]
[1726519999256,6.22655142,2277.4,2276.8,4.39196]
[1726519999459,5.07653022,2277.3,2276.9,4.3918]
[1726520000363,0.68532022,2277.3,2276.9,4.3918]
[1726520000769,0.68532022,2277.3,2277.0,0.17836205]
[1726520000770,5.07649022,2277.3,2277.0,0.17836205]
[1726520001288,0.6266508,2277.5,2277.0,0.17836205]
[1726520001289,4.39155,2277.1,2277.0,0.17836205]
[1726520001490,3.0,2277.1,2277.0,0.17836205]
[1726520001652,6.81929,2277.2,2276.8,4.3921]
[1726520001854,6.81929,2277.2,2277.0,0.17836205]
[1726520002062,6.81929,2277.2,2276.9,0.17848814]
[1726520002063,8.240334,2277.2,2276.9,0.17848814]
[1726520002300,11.240334,2277.2,2277.1,0.17823596]
[1726520002490,9.81929,2277.2,2277.0,0.17836205]
[1726520002694,9.81929,2277.2,2277.1,0.17823596]
[1726520002992,9.81929,2277.2,2276.8,4.3921]
[1726520003216,9.81929,2277.2,2277.1,0.17823596]
[1726520003406,9.81929,2277.2,2276.8,4.3921]
[1726520003719,9.81929,2277.2,2277.1,0.17823596]
[1726520003916,11.240334,2277.2,2276.8,4.3921]
[1726520004066,11.240334,2277.2,2277.1,0.17823596]
[1726520004271,4.39114,2277.4,2277.0,2.3938]
[1726520004466,4.39107,2277.4,2277.1,0.17823596]
[1726520004692,2.433,2277.5,2277.1,0.17823596]
[1726520004693,0.74507908,2277.3,2277.1,0.17823596]
[1726520004897,2.433,2277.5,2277.1,0.17823596]
[1726520004898,6.82385,2277.5,2277.1,4.56977596]
[1726520005070,4.39085,2277.5,2277.1,4.56977596]
[1726520005909,3.11732,2277.7,2277.3,4.39116]
[1726520006113,3.11732,2277.7,2277.4,2.3938]
[1726520006114,5.0748,2277.7,2277.4,2.3938]
[1726520006278,4.39048,2277.7,2277.4,2.5716627]
[1726520007293,2.433,2277.9,2277.4,6.9624427]
[1726520007294,6.82305,2277.9,2277.4,6.9624427]
[1726520007525,4.3902,2277.8,2277.5,4.3907]
[1726520007700,4.3902,2277.8,2277.4,6.9625927]
[1726520007997,8.984348,2277.9,2277.5,4.56844719]
[1726520008166,8.984348,2277.9,2277.6,4.39049]
[1726520008167,2.433,2277.9,2277.6,4.39049]
[1726520008609,2.433,2277.9,2277.7,0.17737084]
[1726520008821,4.38989,2278.0,2277.7,0.17737084]
[1726520009202,2.2904,2277.5,2277.2,4.39124]
[1726520009524,2.2904,2277.5,2277.2,4.39128]
[1726520009811,4.39071,2277.6,2277.2,4.39128]
[1726520011300,2.3792,2277.4,2277.0,4.39166]
[1726520011505,6.77025,2277.4,2277.0,4.39164]
[1726520011717,11.16137,2277.4,2276.9,6.66383]
[1726520012029,4.39116,2277.3,2276.9,6.66383]
[1726520013614,4.39116,2277.3,2276.9,11.05567]
[1726520013820,4.39116,2277.3,2276.9,6.66383]
[1726520014294,7.39087,2277.5,2277.1,4.39154]
[1726520014493,3.381136,2277.6,2277.2,2.2679]
[1726520014494,4.39061,2277.6,2277.2,2.2679]
[1726520014735,16.18106,2277.7,2277.3,4.39113]
[1726520014934,11.79053,2277.7,2277.3,4.39113]
[1726520015238,11.79053,2277.7,2277.3,0.55]
[1726520015239,7.4,2277.7,2277.3,0.55]
[1726520015395,7.4,2277.7,2277.5,4.39076]
[1726520015593,7.4,2277.7,2277.6,2.57504323]
[1726520016041,7.4,2277.7,2277.6,11.35620323]
[1726520016400,7.4,2277.7,2277.6,6.96562323]
[1726520018598,4.38985,2278.0,2277.6,6.96562323]
[1726520018937,5.504147,2278.0,2277.6,6.96562323]
[1726520020316,6.71327,2277.9,2277.6,0.16544323]
[1726520020518,2.3232,2277.9,2277.6,0.16544323]
[1726520021218,2.3232,2277.9,2277.6,4.55601323]
[1726520022336,17.20857,2278.3,2277.8,2.2967]
[1726520022505,11.97230136,2278.3,2277.9,4.38999]
[1726520022707,4.3895,2278.2,2277.9,0.164711]
[1726520023106,4.3897,2278.1,2277.9,0.164711]
[1726520023405,5.26774,2278.0,2277.6,4.39043]
[1726520023750,6.75002,2278.0,2277.6,4.39043]
[1726520025604,2.3602,2278.0,2277.6,4.39043]
[1726520025805,4.38975,2278.1,2277.7,4.39028]
[1726520026005,5.128709,2278.1,2277.7,4.39028]
[1726520026423,4.38984,2278.0,2277.6,4.39054]
[1726520026667,5.5783049,2278.0,2277.6,4.39054]
[1726520027434,1.1884649,2278.0,2277.7,4.39038]
[1726520028972,0.738959,2278.1,2277.7,4.39038]
[1726520029125,2.3661,2278.2,2277.9,4.39]
[1726520029334,6.7556,2278.2,2277.8,11.1046]
[1726520029572,0.975547,2278.1,2277.8,11.1046]
[1726520030337,0.975547,2278.1,2277.8,6.7145]
[1726520030561,0.975547,2278.1,2277.8,4.3901]
[1726520030762,0.975547,2278.1,2277.9,0.164711]
[1726520031164,7.6276247,2278.0,2277.9,0.164711]
[1726520031475,6.85451,2278.0,2277.6,4.39048]
[1726520032073,6.85451,2278.0,2277.7,0.16485476]
[1726520032280,0.77353791,2277.9,2277.7,0.16485476]
[1726520033543,2.3161,2277.8,2277.7,0.16485476]
[1726520033743,6.7063,2277.8,2277.7,0.16485476]
[1726520033967,11.09668,2277.8,2277.4,4.39094]
[1726520034151,13.02271579,2277.8,2277.4,4.39094]
[1726520034349,13.02271579,2277.8,2277.5,0.16503794]
[1726520035747,2.3161,2277.8,2277.5,4.55563794]
[1726520035953,4.38982,2278.0,2277.5,2.42213794]
[1726520036152,0.438982,2277.9,2277.6,4.3905]
[1726520036380,4.38982,2278.0,2277.6,4.39043]
[1726520036553,4.38979,2278.1,2277.7,4.5550946]
[1726520036876,9.23787488,2278.3,2277.9,4.38991]
[1726520037087,5.61423649,2278.3,2277.9,4.38991]
[1726520037389,10.00363649,2278.3,2277.9,4.38991]
[1726520038363,1.22484649,2278.3,2278.0,4.38977]
[1726520038659,1.22484649,2278.3,2278.1,0.16436065]
[1726520038879,0.78656965,2278.2,2278.1,0.16436065]
[1726520039474,0.78656965,2278.2,2277.9,4.38996]
[1726520039684,0.78656965,2278.2,2278.1,0.16436065]
[1726520039858,0.78656965,2278.2,2278.0,0.16448662]
[1726520040208,4.38925,2278.3,2278.1,0.16436065]
[1726520040494,4.38925,2278.3,2277.9,4.38996]
[1726520040679,8.77858,2278.3,2278.2,0.16423469]
[1726520040865,4.39,2277.9,2277.6,6.85655]
[1726520041053,4.39,2277.9,2277.5,4.39067]
[1726520041054,0.67297,2277.8,2277.5,4.39067]
[1726520041249,8.78018,2277.9,2277.7,0.1648646]
[1726520041466,8.78018,2277.9,2277.6,0.16492668]
[1726520041664,1.111988,2277.8,2277.5,4.39067]